Workbook

Sheet 정산서
B1: 2023학년도 교과용도서 정산명세서
C3: 안양예고 | I3: (사)한국검인정교과서협회 삼산서적 강 성 용 (인)
C4: 출력일 : 2023년 03월 03일 | E4: 발행기간 : 2022년07월01일 ~ 2023년03월03일 | L4: 연락처 : 010-5545-7291
B5: 구분 | C5: 출 판 사 | D5: 도 서 명 | E5: CD포함 여 부 | F5: 대표 | G5: 권별 | H5: 정 가 | I5: 공급부수 | J5: 추가부수 | K5: 반품부수 | L5: 정산부수 | M5: 정산금액 | N5: 학생부수 | O5: 학생금액 | P5: 교사용 부수 | Q5: 교사용 금액 | R5: 비고
B6: 교과서 | C6: 비상교육 | D6: 국어(박안) | F6: 박안 | H6: 7540 | I6: 303 | J6: 9 | K6: 3 | L6: 309 | M6: 2329860 | N6: =L6-P6 -> 306 | O6: 2307240 | P6: 3 | Q6: 22620
B7: 교과서 | C7: 동아출판 | D7: 수학 | H7: 6920 | I7: 303 | J7: 9 | K7: 3 | L7: 309 | M7: 2138280 | N7: 306 | O7: 2117520 | P7: 3 | Q7: 20760
B8: 교과서 | C8: 비상교육 | D8: 영어 | H8: 7130 | I8: 300 | J8: 9 | K8: 3 | L8: 306 | M8: 2181780 | N8: 306 | O8: 2181780 | P8: 0 | Q8: 0
B9: 교과서 | C9: 동아출판 | D9: 통합과학 | H9: 5770 | I9: 300 | J9: 9 | K9: 3 | L9: 306 | M9: 1765620 | N9: 306 | O9: 1765620 | P9: 0 | Q9: 0
B10: 교과서 | C10: 주교학사 | D10: 체육 | H10: 8000 | I10: 303 | J10: 9 | K10: 3 | L10: 309 | M10: 2472000 | N10: 306 | O10: 2448000 | P10: 3 | Q10: 24000
B11: 교과서 | C11: 검인정(부산교) | D11: 독일어Ⅰ(15개정) | E11: CD포함 | H11: 6160 | I11: 120 | J11: -12 | K11: 3 | L11: 105 | M11: 646800 | N11: 105 | O11: 646800 | P11: 0 | Q11: 0
B12: 교과서 | C12: 다락원 | D12: 일본어Ⅰ(15개정) | E12: CD포함 | H12: 8800 | I12: 201 | J12: 1 | K12: 0 | L12: 202 | M12: 1777600 | N12: 201 | O12: 1768800 | P12: 1 | Q12: 8800
B13: 1학년 계 | I13: =SUM(I6:I12) -> 1830 | J13: 34 | K13: 18 | L13: 1846 | M13: 13311940 | N13: 1836 | O13: 13235760 | P13: 10 | Q13: 76180
B14: 교과서 | C14: 비상교육 | D14: 독서 | H14: 7350 | I14: 286 | J14: 1 | K14: 7 | L14: 280 | M14: 2058000 | N14: =L14-P14 -> 277 | O14: =M14-Q14 -> 2035950 | P14: 3 | Q14: 22050
B15: 교과서 | C15: (주)지학 | D15: 문학(15개정) | H15: 8370 | I15: 286 | J15: 1 | K15: 7 | L15: 280 | M15: 2343600 | N15: 277 | O15: 2318490 | P15: 3 | Q15: 25110
B16: 교과서 | C16: 동아출판 | D16: 수학Ⅰ(15개정) | H16: 5280 | I16: 286 | J16: 1 | K16: 7 | L16: 280 | M16: 1478400 | N16: 277 | O16: 1462560 | P16: 3 | Q16: 15840
B17: 교과서 | C17: 비상교육 | D17: 영어Ⅰ(15개정) | H17: 6170 | I17: 283 | J17: 1 | K17: 7 | L17: 277 | M17: 1709090 | N17: 277 | O17: 1709090 | P17: 0 | Q17: 0
B18: 교과서 | C18: 동아출판 | D18: 한국사(15개정) | H18: 9740 | I18: 285 | J18: 1 | K18: 7 | L18: 279 | M18: 2717460 | N18: 277 | O18: 2697980 | P18: 2 | Q18: 19480
B19: 교과서 | C19: 동아출판 | D19: 화학Ⅰ(15개정) | H19: 8740 | I19: 283 | J19: 1 | K19: 7 | L19: 277 | M19: 2420980 | N19: 277 | O19: 2420980 | P19: 0 | Q19: 0
B20: 교과서 | C20: 동아출판 | D20: 생명과학Ⅰ(15개정) | H20: 8780 | I20: 283 | J20: 1 | K20: 7 | L20: 277 | M20: 2432060 | N20: 277 | O20: 2432060 | P20: 0 | Q20: 0
B21: 교과서 | C21: (주)지학 | D21: 운동과 건강 | H21: 7360 | I21: 286 | J21: 1 | K21: 7 | L21: 280 | M21: 2060800 | N21: 277 | O21: 2038720 | P21: 3 | Q21: 22080
B22: 교과서 | C22: 천재교과 | D22: 철학(15개정) | H22: 8000 | I22: 285 | J22: 1 | K22: 7 | L22: 279 | M22: 2232000 | N22: 277 | O22: 2216000 | P22: 2 | Q22: 16000
B23: 교과서 | C23: 지엔피에듀 | D23: 무용의 이해 | H23: 9800 | I23: 43 | J23: -12 | K23: 0 | L23: 31 | M23: 303800 | N23: 28 | O23: 274400 | P23: 3 | Q23: 29400
D24: 2학년 계 | I24: =SUM(I14:I23) -> 2606 | J24: -3 | K24: 63 | L24: 2540 | M24: 19756190 | N24: 2521 | O24: 19606230 | P24: 19 | Q24: 149960
B25: 교과서 | C25: 비상교육 | D25: 화법과 작문(15개정) | H25: 7360 | I25: 308 | J25: 0 | K25: 0 | L25: 308 | M25: 2266880 | N25: =L25-P25 -> 305 | O25: 2244800 | P25: 3 | Q25: 22080
B26: 교과서 | C26: 창비 | D26: 언어와 매체 | H26: 7530 | I26: 308 | J26: 0 | K26: 0 | L26: 308 | M26: 2319240 | N26: 305 | O26: 2296650 | P26: 3 | Q26: 22590
B27: 교과서 | C27: 엔이능률 | D27: 영어Ⅱ(15개정) | H27: 5610 | I27: 305 | J27: 0 | K27: 0 | L27: 305 | M27: 1711050 | N27: 305 | O27: 1711050 | P27: 0 | Q27: 0
B28: 교과서 | C28: 천재교과 | D28: 생활과 윤리(15개정) | H28: 7520 | I28: 306 | J28: 0 | K28: 0 | L28: 306 | M28: 2301120 | N28: 305 | O28: 2293600 | P28: 1 | Q28: 7520
B29: 교과서 | C29: (주)체육과건강 | D29: 스포츠 생활 | H29: 8000 | I29: 308 | J29: 0 | K29: 0 | L29: 308 | M29: 2464000 | N29: 305 | O29: 2440000 | P29: 3 | Q29: 24000
D30: 3학년 계 | I30: =SUM(I25:I29) -> 1535 | J30: 0 | K30: 0 | L30: 1535 | M30: 11062290 | N30: 1525 | O30: 10986100 | P30: 10 | Q30: 76190
B31: 교과서합계 | I31: =I30+I24+I13 -> 5971 | J31: 31 | K31: 81 | L31: 5921 | M31: 44130420 | N31: 5882 | O31: 43828090 | P31: 39 | Q31: 302330
B32: 지도서 | C32: 비상교육 | D32: 국어(박안) | F32: 박안 | H32: 75000 | I32: 3 | J32: 0 | K32: 0 | L32: 3 | M32: 225000 | P32: 3 | Q32: 225000
B33: 지도서 | C33: 비상교육 | D33: 화법과 작문(15개정) | H33: 68700 | I33: 3 | J33: 0 | K33: 0 | L33: 3 | M33: 206100 | P33: 3 | Q33: 206100
B34: 지도서 | C34: 비상교육 | D34: 독서 | H34: 97300 | I34: 3 | J34: 0 | K34: 0 | L34: 3 | M34: 291900 | P34: 3 | Q34: 291900
B35: 지도서 | C35: 창비 | D35: 언어와 매체 | H35: 48000 | I35: 3 | J35: 0 | K35: 0 | L35: 3 | M35: 144000 | P35: 3 | Q35: 144000
B36: 지도서 | C36: (주)지학 | D36: 문학(15개정) | H36: 80000 | I36: 3 | J36: 0 | K36: 0 | L36: 3 | M36: 240000 | P36: 3 | Q36: 240000
B37: 지도서 | C37: 동아출판 | D37: 수학 | E37: CD포함 | H37: 65000 | I37: 3 | J37: 0 | K37: 0 | L37: 3 | M37: 195000 | P37: 3 | Q37: 195000
B38: 지도서 | C38: 동아출판 | D38: 수학Ⅰ(15개정) | E38: CD포함 | H38: 45000 | I38: 3 | J38: 0 | K38: 0 | L38: 3 | M38: 135000 | P38: 3 | Q38: 135000
B39: 지도서 | C39: 동아출판 | D39: 한국사(15개정) | H39: 57000 | I39: 2 | J39: 0 | K39: 0 | L39: 2 | M39: 114000 | P39: 2 | Q39: 114000
B40: 지도서 | C40: 천재교과 | D40: 생활과 윤리(15개정) | E40: CD포함 | H40: 75400 | I40: 1 | J40: 0 | K40: 0 | L40: 1 | M40: 75400 | P40: 1 | Q40: 75400
B41: 지도서 | C41: 주교학사 | D41: 체육 | H41: 70000 | I41: 3 | J41: 0 | K41: 0 | L41: 3 | M41: 210000 | P41: 3 | Q41: 210000
B42: 지도서 | C42: (주)지학 | D42: 운동과 건강 | H42: 52000 | I42: 3 | J42: 0 | K42: 0 | L42: 3 | M42: 156000 | P42: 3 | Q42: 156000
B43: 지도서 | C43: (주)체육과건강 | D43: 스포츠 생활 | H43: 30000 | I43: 3 | J43: 0 | K43: 0 | L43: 3 | M43: 90000 | P43: 3 | Q43: 90000
B44: 지도서 | C44: 다락원 | D44: 일본어Ⅰ(15개정) | E44: CD별도 | H44: 40000 | I44: 1 | J44: 0 | K44: 0 | L44: 1 | M44: 40000 | P44: 1 | Q44: 40000
B45: 지도서 | C45: 천재교과 | D45: 철학(15개정) | E45: CD포함 | H45: 56200 | I45: 2 | J45: 0 | K45: 0 | L45: 2 | M45: 112400 | P45: 2 | Q45: 112400
B46: 지도서합계 | I46: 36 | J46: 0 | K46: 0 | L46: 36 | M46: 2234800 | P46: 36 | Q46: 2234800
B47: 총 계 | I47: 6007 | J47: 31 | K47: 81 | L47: 5957 | M47: 46365220 | N47: =N31 -> 5882 | O47: =O31 -> 43828090 | P47: =P46+P31 -> 75 | Q47: =Q46+Q31 -> 2537130
C49: 상기 정산금액을
C51: 학교CMS코드 | D51: 30804018 | F51: 가상계좌
C52: 거 래 은 행 | D52: 농협 | F52: 농협 | I52: 우리 | K52: 하나
C53: 예 금 주 | D53: (사)한국검인정교과서 | F53: 안양예술고 | I53: 안양예술고 | K53: 안양예술고
C54: 계 좌 번 호 | D54: 025-01-201021 | F54: 79012982654323 | I54: 27299745718166 | K54: 23993222750837

Sheet XLR_NoRangeSheet (hidden)
A5: 4.2, Developer (build 122-D7) | B5: =XLR_ERRNAME -> 
A6: xlrParams | B6: 2023학년도 교과용도서 정산명세서 | C6: 2023년 03월 03일 | D6: 출력일 : 2023년 03월 03일 | E6: 발행기간 : 2022년07월01일 ~ 2023년03월03일

Sheet 주문부수확인서
C1: 주문부수 확인서 | Z1: 주문부수 확인서
V2: 2023.3.3
B3: 학교명 : | C3: 안양과천 안양예고 | I3: 학생용 | Q3: 교사용 | Y3: 학교명 : | Z3: 안양과천 안양예고
B4: 도서코드 | C4: 과목명 | D4: 권별 | E4: 출판사 | F4: 저자 | G4: 개정 | H4: 주문 | I4: 교과서 | Q4: 교과서 | S4: 지도서 | V4: 합계금액 | Y4: 도서코드 | Z4: 과목명 | AA4: 권별 | AB4: 출판사 | AC4: 저자 | AD4: 개정 | AE4: 주문 | AF4: 교과서 | AI4: e-교과서/오디오 | AK4: 지도서 | AN4: 저시력 | AP4: 비고
G5: 구분 | H5: 학년 | I5: 정가 | J5: 학생용 | K5: 1차 취소(9/22) | L5: 2차 추가(12/6) | M5: 3차 추가(12/27) | N5: 반품(3/3) | O5: 학생계 | P5: 학생금액 | Q5: 교사용 | R5: 계 | S5: 부수 | T5: 정가 | U5: 금액 | AD5: 구분 | AE5: 학년 | AF5: 부수 | AG5: 정가 | AH5: CD 등 포함여부 | AI5: 부수 | AJ5: 정가 | AK5: 부수 | AL5: 정가 | AM5: CD 등 포함여부 | AN5: 부수 | AO5: 정가
B6: 12209 | C6: 국어 | E6: (주)비상교육 | F6: 박안 | G6: 2015개정 | H6: 1 | I6: 7540 | J6: 320 | K6: -20 | L6: 9 | N6: -3 | O6: =N6+M6+L6+K6+J6 -> 306 | P6: =O6*I6 -> 2307240 | Q6: 3 | R6: =Q6*I6 -> 22620 | S6: 3 | T6: 75000 | U6: =T6*S6 -> 225000 | V6: =U6+R6 -> 247620 | Y6: 12209 | Z6: 국어 | AB6: (주)비상교육 | AC6: 박안 | AD6: 2015개정 | AE6: 1 | AF6: 309 | AG6: 7540 | AI6: =AF6*AG6 -> 2329860 | AJ6: 0 | AK6: 3 | AL6: 75000 | AN6: =AL6*AK6 -> 225000 | AO6: 0 | AP6: =IF(AD6="2007개정","※교육과정 주의","") -> 
B7: 12307 | C7: 수학 | E7: 동아출판(주) | G7: 2015개정 | H7: 1 | I7: 6920 | J7: 320 | K7: -20 | L7: 9 | N7: -3 | O7: =N7+M7+L7+K7+J7 -> 306 | P7: =O7*I7 -> 2117520 | Q7: 3 | R7: =Q7*I7 -> 20760 | S7: 3 | T7: 65000 | U7: =T7*S7 -> 195000 | V7: =U7+R7 -> 215760 | Y7: 12307 | Z7: 수학 | AB7: 동아출판(주) | AD7: 2015개정 | AE7: 1 | AF7: 309 | AG7: 6920 | AI7: 2138280 | AJ7: 0 | AK7: 3 | AL7: 65000 | AM7: CD포함 | AN7: =AL7*AK7 -> 195000 | AO7: 0
B8: 12401 | C8: 영어 | E8: (주)비상교육 | G8: 2015개정 | H8: 1 | I8: 7130 | J8: 320 | K8: -20 | L8: 9 | N8: -3 | O8: 306 | P8: 2181780 | Q8: 0 | R8: 0 | T8: 0 | U8: =T8*S8 -> 0 | V8: =U8+R8 -> 0 | Y8: 12401 | Z8: 영어 | AB8: (주)비상교육 | AD8: 2015개정 | AE8: 1 | AF8: 309 | AG8: 7130 | AI8: 2203170 | AJ8: 0 | AL8: 0 | AN8: 0 | AO8: 0
B9: 12635 | C9: 통합과학 | E9: 동아출판(주) | G9: 2015개정 | H9: 1 | I9: 5770 | J9: 320 | K9: -20 | L9: 9 | N9: -3 | O9: 306 | P9: 1765620 | Q9: 0 | R9: 0 | T9: 0 | U9: 0 | V9: 0 | Y9: 12635 | Z9: 통합과학 | AB9: 동아출판(주) | AD9: 2015개정 | AE9: 1 | AF9: 309 | AG9: 5770 | AI9: 1782930 | AJ9: 0 | AL9: 0 | AN9: 0 | AO9: 0
B10: 13341 | C10: 독일어Ⅰ(15개정) | E10: (사)한국검인정(부산교육청) | G10: 2015개정 | H10: 1 | I10: 6160 | J10: 120 | L10: -12 | N10: -3 | O10: 105 | P10: 646800 | Q10: 0 | R10: 0 | T10: 0 | U10: 0 | V10: 0 | Y10: 13341 | Z10: 독일어Ⅰ(15개정) | AB10: (사)한국검인정(부산교육청) | AD10: 2015개정 | AE10: 1 | AF10: 108 | AG10: 6160 | AH10: CD포함 | AI10: 665280 | AJ10: 0 | AL10: 0 | AN10: 0 | AO10: 0
B11: 13392 | C11: 일본어Ⅰ(15개정) | E11: (주)다락원 | G11: 2015개정 | H11: 1 | I11: 8800 | J11: 200 | L11: 1 | N11: 0 | O11: 201 | P11: 1768800 | Q11: 1 | R11: 8800 | S11: 1 | T11: 40000 | U11: 40000 | V11: 48800 | Y11: 13392 | Z11: 일본어Ⅰ(15개정) | AB11: (주)다락원 | AD11: 2015개정 | AE11: 1 | AF11: 201 | AG11: 8800 | AH11: CD포함 | AI11: 1768800 | AJ11: 0 | AK11: 1 | AL11: 40000 | AM11: CD별도 | AN11: 40000 | AO11: 0
B12: 13139 | C12: 체육 | E12: (주)교학사 | G12: 2015개정 | H12: 1 | I12: 8000 | J12: 320 | K12: -20 | L12: 9 | N12: -3 | O12: 306 | P12: 2448000 | Q12: 3 | R12: 24000 | S12: 3 | T12: 70000 | U12: 210000 | V12: 234000 | Y12: 13139 | Z12: 체육 | AB12: (주)교학사 | AD12: 2015개정 | AE12: 1 | AF12: 309 | AG12: 8000 | AI12: 2472000 | AJ12: 0 | AK12: 3 | AL12: 70000 | AN12: 210000 | AO12: 0
B13: 12245 | C13: 독서 | E13: (주)비상교육 | G13: 2015개정 | H13: 2 | I13: 7350 | J13: 293 | K13: -10 | M13: 1 | N13: -7 | O13: 277 | P13: 2035950 | Q13: 3 | R13: 22050 | S13: 3 | T13: 97300 | U13: 291900 | V13: 313950 | Y13: 12245 | Z13: 독서 | AB13: (주)비상교육 | AD13: 2015개정 | AE13: 2 | AF13: 283 | AG13: 7350 | AI13: 2080050 | AJ13: 0 | AK13: 3 | AL13: 97300 | AN13: 291900 | AO13: 0
B14: 12283 | C14: 문학(15개정) | E14: (주)지학사 | G14: 2015개정 | H14: 2 | I14: 8370 | J14: 293 | K14: -10 | M14: 1 | N14: -7 | O14: 277 | P14: 2318490 | Q14: 3 | R14: 25110 | S14: 3 | T14: 80000 | U14: 240000 | V14: 265110 | Y14: 12283 | Z14: 문학(15개정) | AB14: (주)지학사 | AD14: 2015개정 | AE14: 2 | AF14: 283 | AG14: 8370 | AI14: 2368710 | AJ14: 0 | AK14: 3 | AL14: 80000 | AN14: 240000 | AO14: 0
B15: 12676 | C15: 생명과학Ⅰ(15개정) | E15: 동아출판(주) | G15: 2015개정 | H15: 2 | I15: 8780 | J15: 293 | K15: -10 | M15: 1 | N15: -7 | O15: 277 | P15: 2432060 | Q15: 0 | R15: 0 | T15: 0 | U15: 0 | V15: 0 | Y15: 12676 | Z15: 생명과학Ⅰ(15개정) | AB15: 동아출판(주) | AD15: 2015개정 | AE15: 2 | AF15: 283 | AG15: 8780 | AI15: 2484740 | AJ15: 0 | AL15: 0 | AN15: 0 | AO15: 0
B16: 12317 | C16: 수학Ⅰ(15개정) | E16: 동아출판(주) | G16: 2015개정 | H16: 2 | I16: 5280 | J16: 293 | K16: -10 | M16: 1 | N16: -7 | O16: 277 | P16: 1462560 | Q16: 3 | R16: 15840 | S16: 3 | T16: 45000 | U16: 135000 | V16: 150840 | Y16: 12317 | Z16: 수학Ⅰ(15개정) | AB16: 동아출판(주) | AD16: 2015개정 | AE16: 2 | AF16: 283 | AG16: 5280 | AI16: 1494240 | AJ16: 0 | AK16: 3 | AL16: 45000 | AM16: CD포함 | AN16: 135000 | AO16: 0
B17: 12430 | C17: 영어Ⅰ(15개정) | E17: (주)비상교육 | G17: 2015개정 | H17: 2 | I17: 6170 | J17: 293 | K17: -10 | M17: 1 | N17: -7 | O17: =N17+M17+L17+K17+J17 -> 277 | P17: 1709090 | Q17: 0 | R17: 0 | T17: 0 | U17: 0 | V17: 0 | Y17: 12430 | Z17: 영어Ⅰ(15개정) | AB17: (주)비상교육 | AD17: 2015개정 | AE17: 2 | AF17: 283 | AG17: 6170 | AI17: 1746110 | AJ17: 0 | AL17: 0 | AN17: 0 | AO17: 0
B18: 12496 | C18: 한국사(15개정) | E18: 동아출판(주) | G18: 2015개정 | H18: 2 | I18: 9740 | J18: 293 | K18: -10 | M18: 1 | N18: -7 | O18: 277 | P18: 2697980 | Q18: 2 | R18: 19480 | S18: 2 | T18: 57000 | U18: 114000 | V18: 133480 | Y18: 12496 | Z18: 한국사(15개정) | AB18: 동아출판(주) | AD18: 2015개정 | AE18: 2 | AF18: 283 | AG18: 9740 | AI18: 2756420 | AJ18: 0 | AK18: 2 | AL18: 57000 | AN18: 114000 | AO18: 0
B19: 12668 | C19: 화학Ⅰ(15개정) | E19: 동아출판(주) | G19: 2015개정 | H19: 2 | I19: 8740 | J19: 293 | K19: -10 | M19: 1 | N19: -7 | O19: 277 | P19: 2420980 | Q19: 0 | R19: 0 | T19: 0 | U19: 0 | V19: 0 | Y19: 12668 | Z19: 화학Ⅰ(15개정) | AB19: 동아출판(주) | AD19: 2015개정 | AE19: 2 | AF19: 283 | AG19: 8740 | AI19: 2473420 | AJ19: 0 | AL19: 0 | AN19: 0 | AO19: 0
B20: 14241 | C20: 무용의 이해 | E20: (주)지엔피에듀 | G20: 2015개정 | H20: 2 | I20: 9800 | J20: 40 | M20: -12 | N20: 0 | O20: 28 | P20: 274400 | Q20: 3 | R20: 29400 | T20: 0 | U20: 0 | V20: 29400 | Y20: 14241 | Z20: 무용의 이해 | AB20: (주)지엔피에듀 | AD20: 2015개정 | AE20: 2 | AF20: 40 | AG20: 9800 | AI20: 392000 | AJ20: 0 | AL20: 0 | AN20: 0 | AO20: 0
B21: 13158 | C21: 운동과 건강 | E21: (주)지학사 | G21: 2015개정 | H21: 2 | I21: 7360 | J21: 293 | K21: -10 | M21: 1 | N21: -7 | O21: 277 | P21: 2038720 | Q21: 3 | R21: 22080 | S21: 3 | T21: 52000 | U21: 156000 | V21: 178080 | Y21: 13158 | Z21: 운동과 건강 | AB21: (주)지학사 | AD21: 2015개정 | AE21: 2 | AF21: 283 | AG21: 7360 | AI21: 2082880 | AJ21: 0 | AK21: 3 | AL21: 52000 | AN21: 156000 | AO21: 0
B22: 13541 | C22: 철학(15개정) | E22: (주)천재교과서 | G22: 2015개정 | H22: 2 | I22: 8000 | J22: 293 | K22: -10 | M22: 1 | N22: -7 | O22: =N22+M22+L22+K22+J22 -> 277 | P22: 2216000 | Q22: 2 | R22: 16000 | S22: 2 | T22: 56200 | U22: 112400 | V22: 128400 | Y22: 13541 | Z22: 철학(15개정) | AB22: (주)천재교과서 | AD22: 2015개정 | AE22: 2 | AF22: 283 | AG22: 8000 | AI22: 2264000 | AJ22: 0 | AK22: 2 | AL22: 56200 | AM22: CD포함 | AN22: 112400 | AO22: 0
B23: 12262 | C23: 언어와 매체 | E23: (주)창비 | G23: 2015개정 | H23: 3 | I23: 7530 | J23: 315 | K23: -10 | O23: 305 | P23: 2296650 | Q23: 3 | R23: 22590 | S23: 3 | T23: 48000 | U23: 144000 | V23: 166590 | Y23: 12262 | Z23: 언어와 매체 | AB23: (주)창비 | AD23: 2015개정 | AE23: 3 | AF23: 305 | AG23: 7530 | AI23: 2296650 | AJ23: 0 | AK23: 3 | AL23: 48000 | AN23: 144000 | AO23: 0
B24: 12446 | C24: 영어Ⅱ(15개정) | E24: (주)엔이능률 | G24: 2015개정 | H24: 3 | I24: 5610 | J24: 315 | K24: -10 | O24: 305 | P24: 1711050 | Q24: 0 | R24: 0 | T24: 0 | U24: 0 | V24: 0 | Y24: 12446 | Z24: 영어Ⅱ(15개정) | AB24: (주)엔이능률 | AD24: 2015개정 | AE24: 3 | AF24: 305 | AG24: 5610 | AI24: 1711050 | AJ24: 0 | AL24: 0 | AN24: 0 | AO24: 0
B25: 12224 | C25: 화법과 작문(15개정) | E25: (주)비상교육 | G25: 2015개정 | H25: 3 | I25: 7360 | J25: 315 | K25: -10 | O25: 305 | P25: 2244800 | Q25: 3 | R25: 22080 | S25: 3 | T25: 68700 | U25: 206100 | V25: 228180 | Y25: 12224 | Z25: 화법과 작문(15개정) | AB25: (주)비상교육 | AD25: 2015개정 | AE25: 3 | AF25: 305 | AG25: 7360 | AI25: 2244800 | AJ25: 0 | AK25: 3 | AL25: 68700 | AN25: 206100 | AO25: 0
B26: 12583 | C26: 생활과 윤리(15개정) | E26: (주)천재교과서 | G26: 2015개정 | H26: 3 | I26: 7520 | J26: 315 | K26: -10 | O26: 305 | P26: 2293600 | Q26: 1 | R26: 7520 | S26: 1 | T26: 75400 | U26: 75400 | V26: 82920 | Y26: 12583 | Z26: 생활과 윤리(15개정) | AB26: (주)천재교과서 | AD26: 2015개정 | AE26: 3 | AF26: 305 | AG26: 7520 | AI26: 2293600 | AJ26: 0 | AK26: 1 | AL26: 75400 | AM26: CD포함 | AN26: 75400 | AO26: 0
B27: 13161 | C27: 스포츠 생활 | E27: (주)체육과건강 | G27: 2015개정 | H27: 3 | I27: 8000 | J27: 315 | K27: -10 | O27: 305 | P27: 2440000 | Q27: 3 | R27: 24000 | S27: 3 | T27: 30000 | U27: 90000 | V27: 114000 | Y27: 13161 | Z27: 스포츠 생활 | AB27: (주)체육과건강 | AD27: 2015개정 | AE27: 3 | AF27: 305 | AG27: 8000 | AI27: 2440000 | AJ27: 0 | AK27: 3 | AL27: 30000 | AN27: 90000 | AO27: 0
B28: 합 계 | J28: 6172 | K28: =SUM(K6:K27) -> -240 | L28: -12 | M28: -3 | N28: -81 | O28: 5882 | P28: 43828090 | Q28: 39 | R28: 302330 | S28: 36 | T28: 859600 | U28: 2234800 | V28: 2537130 | Y28: 12209 | Z28: 국어 | AB28: (주)비상교육 | AC28: 박안 | AD28: 2015개정 | AE28: 교사용 | AF28: 3 | AG28: 7540 | AI28: =AF28*AG28 -> 22620 | AJ28: 0 | AL28: 0 | AN28: 0 | AO28: 0

Sheet 교사용 견적서
A1: 견 적 서
A3: 2023년 3월 7일 | E3: 공 | F3: 사업자등록번호 | H3: 380-97-01021
A4: 안양예술고등학교장 귀하 | E4: 급 | F4: 상 호 | H4: 삼산서적 | I4: 대표자 | J4: 강성용 (인)
A5: 아래와 같이 견적합니다. | E5: 자 | F5: 사업장소재지 | H5: 서울시 강서구 양천로 595, 104동202호 (염창동 금호타운아파트)
F6: 전화 / 팩스 | H6: 010-5545-7291/02-6020-8688
A8: 구분 | B8: 출 판 사 | C8: 도 서 명 | D8: CD포함 여 부 | E8: 대표 | F8: 권별 | G8: 정 가 | H8: 교사용 부수 | I8: 교사용 금액 | J8: 비고
A9: 교과서 | B9: 비상교육 | C9: 국어(박안) | E9: 박안 | G9: 7540 | H9: 3 | I9: 22620
A10: 교과서 | B10: 비상교육 | C10: 화법과 작문(15개정) | G10: 7360 | H10: 3 | I10: 22080
A11: 교과서 | B11: 비상교육 | C11: 독서 | G11: 7350 | H11: 3 | I11: 22050
A12: 교과서 | B12: 창비 | C12: 언어와 매체 | G12: 7530 | H12: 3 | I12: 22590
A13: 교과서 | B13: (주)지학 | C13: 문학(15개정) | G13: 8370 | H13: 3 | I13: 25110
A14: 교과서 | B14: 동아출판 | C14: 수학 | G14: 6920 | H14: 3 | I14: 20760
A15: 교과서 | B15: 동아출판 | C15: 수학Ⅰ(15개정) | G15: 5280 | H15: 3 | I15: 15840
A16: 교과서 | B16: 비상교육 | C16: 영어 | G16: 7130 | H16: 0 | I16: 0
A17: 교과서 | B17: 비상교육 | C17: 영어Ⅰ(15개정) | G17: 6170 | H17: 0 | I17: 0
A18: 교과서 | B18: 엔이능률 | C18: 영어Ⅱ(15개정) | G18: 5610 | H18: 0 | I18: 0
A19: 교과서 | B19: 동아출판 | C19: 한국사(15개정) | G19: 9740 | H19: 2 | I19: 19480
A20: 교과서 | B20: 천재교과 | C20: 생활과 윤리(15개정) | G20: 7520 | H20: 1 | I20: 7520
A21: 교과서 | B21: 동아출판 | C21: 통합과학 | G21: 5770 | H21: 0 | I21: 0
A22: 교과서 | B22: 동아출판 | C22: 화학Ⅰ(15개정) | G22: 8740 | H22: 0 | I22: 0
A23: 교과서 | B23: 동아출판 | C23: 생명과학Ⅰ(15개정) | G23: 8780 | H23: 0 | I23: 0
A24: 교과서 | B24: 주교학사 | C24: 체육 | G24: 8000 | H24: 3 | I24: 24000
A25: 교과서 | B25: (주)지학 | C25: 운동과 건강 | G25: 7360 | H25: 3 | I25: 22080
A26: 교과서 | B26: (주)체육과건강 | C26: 스포츠 생활 | G26: 8000 | H26: 3 | I26: 24000
A27: 교과서 | B27: 검인정(부산교) | C27: 독일어Ⅰ(15개정) | D27: CD포함 | G27: 6160 | H27: 0 | I27: 0
A28: 교과서 | B28: 다락원 | C28: 일본어Ⅰ(15개정) | D28: CD포함 | G28: 8800 | H28: 1 | I28: 8800
A29: 교과서 | B29: 천재교과 | C29: 철학(15개정) | G29: 8000 | H29: 2 | I29: 16000
A30: 교과서 | B30: 지엔피에듀 | C30: 무용의 이해 | G30: 9800 | H30: 3 | I30: 29400
A31: 교과서합계 | H31: 39 | I31: 302330
A32: 지도서 | B32: 비상교육 | C32: 국어(박안) | E32: 박안 | G32: 75000 | H32: 3 | I32: 225000
A33: 지도서 | B33: 비상교육 | C33: 화법과 작문(15개정) | G33: 68700 | H33: 3 | I33: 206100
A34: 지도서 | B34: 비상교육 | C34: 독서 | G34: 97300 | H34: 3 | I34: 291900
A35: 지도서 | B35: 창비 | C35: 언어와 매체 | G35: 48000 | H35: 3 | I35: 144000
A36: 지도서 | B36: (주)지학 | C36: 문학(15개정) | G36: 80000 | H36: 3 | I36: 240000
A37: 지도서 | B37: 동아출판 | C37: 수학 | D37: CD포함 | G37: 65000 | H37: 3 | I37: 195000
A38: 지도서 | B38: 동아출판 | C38: 수학Ⅰ(15개정) | D38: CD포함 | G38: 45000 | H38: 3 | I38: 135000
A39: 지도서 | B39: 동아출판 | C39: 한국사(15개정) | G39: 57000 | H39: 2 | I39: 114000
A40: 지도서 | B40: 천재교과 | C40: 생활과 윤리(15개정) | D40: CD포함 | G40: 75400 | H40: 1 | I40: 75400
A41: 지도서 | B41: 주교학사 | C41: 체육 | G41: 70000 | H41: 3 | I41: 210000
A42: 지도서 | B42: (주)지학 | C42: 운동과 건강 | G42: 52000 | H42: 3 | I42: 156000
A43: 지도서 | B43: (주)체육과건강 | C43: 스포츠 생활 | G43: 30000 | H43: 3 | I43: 90000
A44: 지도서 | B44: 다락원 | C44: 일본어Ⅰ(15개정) | D44: CD별도 | G44: 40000 | H44: 1 | I44: 40000
A45: 지도서 | B45: 천재교과 | C45: 철학(15개정) | D45: CD포함 | G45: 56200 | H45: 2 | I45: 112400
A46: 지도서합계 | H46: 36 | I46: 2234800
A47: 총 계 | H47: 75 | I47: 2537130
B49: 상기 정산금액을 아래구좌로 입금하여 주시기 바랍니다.
B51: 학교CMS코드 | C51: 30804018 | E51: 가상계좌
B52: 거 래 은 행 | C52: 농협 | E52: 농협 | H52: 우리 | J52: 하나
B53: 예 금 주 | C53: (사)한국검인정교과서 | E53: 안양예 | H53: 안양예 | J53: 안양예
B54: 계 좌 번 호 | C54: 025-01-201021 | E54: 79012982654323 | H54: 27299745718166 | J54: 23993222750837

Sheet 1학년 견적서
A1: 견 적 서
A4: 2023년 3월 7일 | H4: 공 | I4: 사업자등록번호 | K4: 380-97-01021
A5: 안양예술고등학교장 귀하 | H5: 급 | I5: 상 호 | K5: 삼산서적 | L5: 대표자 | M5: 강성용 (인)
A6: 아래와 같이 견적합니다. | H6: 자 | I6: 사업장소재지 | K6: 서울시 강서구 양천로 595, 104동202호 (염창동 금호타운아파트)
I7: 전화 / 팩스 | K7: 010-5545-7291/02-6020-8688
A9: 구분 | B9: 출 판 사 | C9: 도 서 명 | D9: CD포함 여 부 | E9: 대표 | F9: 권별 | G9: 정 가 | H9: 공급부수 | I9: 추가부수 | J9: 반품부수 | K9: 교사용부수 | L9: 학생부수 | M9: 학생금액 | N9: 비고
A10: 교과서 | B10: 비상교육 | C10: 국어(박안) | E10: 박안 | G10: 7540 | H10: 303 | I10: 9 | J10: 3 | K10: 3 | L10: 306 | M10: 2307240
A11: 교과서 | B11: 동아출판 | C11: 수학 | G11: 6920 | H11: 303 | I11: 9 | J11: 3 | K11: 3 | L11: 306 | M11: 2117520
A12: 교과서 | B12: 비상교육 | C12: 영어 | G12: 7130 | H12: 300 | I12: 9 | J12: 3 | K12: 0 | L12: 306 | M12: 2181780
A13: 교과서 | B13: 동아출판 | C13: 통합과학 | G13: 5770 | H13: 300 | I13: 9 | J13: 3 | K13: 0 | L13: 306 | M13: 1765620
A14: 교과서 | B14: 주교학사 | C14: 체육 | G14: 8000 | H14: 303 | I14: 9 | J14: 3 | K14: 3 | L14: 306 | M14: 2448000
A15: 교과서 | B15: 검인정(부산교) | C15: 독일어Ⅰ(15개정) | D15: CD포함 | G15: 6160 | H15: 120 | I15: -12 | J15: 3 | K15: 0 | L15: 105 | M15: 646800
A16: 교과서 | B16: 다락원 | C16: 일본어Ⅰ(15개정) | D16: CD포함 | G16: 8800 | H16: 201 | I16: 1 | J16: 0 | K16: 1 | L16: 201 | M16: 1768800
A17: 1학년 계 | H17: 1830 | I17: 34 | J17: 18 | K17: 10 | L17: 1836 | M17: 13235760
A19: 상기 정산금액을 아래구좌로 입금하여 주시기 바랍니다.
A21: 학교CMS코드 | B21: 30804018 | D21: 가상계좌
A22: 거 래 은 행 | B22: 농협 | D22: 농협 | G22: 우리 | I22: 하나
A23: 예 금 주 | B23: (사)한국검인정교과서 | D23: 안양예술고 | G23: 안양예술고 | I23: 안양예술고
A24: 계 좌 번 호 | B24: 025-01-201021 | D24: 79012982654323 | G24: 27299745718166 | I24: 23993222750837

Sheet 2,3학년 견적서
A1: 견 적 서
A4: 2023년 3월 7일 | H4: 공 | I4: 사업자등록번호 | K4: 380-97-01021
A5: 안양예술고등학교장 귀하 | H5: 급 | I5: 상 호 | K5: 삼산서적 | L5: 대표자 | M5: 강성용 (인)
A6: 아래와 같이 견적합니다. | H6: 자 | I6: 사업장소재지 | K6: 서울시 강서구 양천로 595, 104동202호 (염창동 금호타운아파트)
I7: 전화 / 팩스 | K7: 010-5545-7291/02-6020-8688
A9: 구분 | B9: 출 판 사 | C9: 도 서 명 | D9: CD포함 여 부 | E9: 대표 | F9: 권별 | G9: 정 가 | H9: 공급부수 | I9: 추가부수 | J9: 반품부수 | K9: 교사용부수 | L9: 학생부수 | M9: 학생금액 | N9: 비고
A10: 교과서 | B10: 비상교육 | C10: 독서 | G10: 7350 | H10: 286 | I10: 1 | J10: 7 | K10: 3 | L10: 277 | M10: 2035950
A11: 교과서 | B11: (주)지학 | C11: 문학(15개정) | G11: 8370 | H11: 286 | I11: 1 | J11: 7 | K11: 3 | L11: 277 | M11: 2318490
A12: 교과서 | B12: 동아출판 | C12: 수학Ⅰ(15개정) | G12: 5280 | H12: 286 | I12: 1 | J12: 7 | K12: 3 | L12: 277 | M12: 1462560
A13: 교과서 | B13: 비상교육 | C13: 영어Ⅰ(15개정) | G13: 6170 | H13: 283 | I13: 1 | J13: 7 | K13: 0 | L13: 277 | M13: 1709090
A14: 교과서 | B14: 동아출판 | C14: 한국사(15개정) | G14: 9740 | H14: 285 | I14: 1 | J14: 7 | K14: 2 | L14: 277 | M14: 2697980
A15: 교과서 | B15: 동아출판 | C15: 화학Ⅰ(15개정) | G15: 8740 | H15: 283 | I15: 1 | J15: 7 | K15: 0 | L15: 277 | M15: 2420980
A16: 교과서 | B16: 동아출판 | C16: 생명과학Ⅰ(15개정) | G16: 8780 | H16: 283 | I16: 1 | J16: 7 | K16: 0 | L16: 277 | M16: 2432060
A17: 교과서 | B17: (주)지학 | C17: 운동과 건강 | G17: 7360 | H17: 286 | I17: 1 | J17: 7 | K17: 3 | L17: 277 | M17: 2038720
A18: 교과서 | B18: 천재교과 | C18: 철학(15개정) | G18: 8000 | H18: 285 | I18: 1 | J18: 7 | K18: 2 | L18: 277 | M18: 2216000
A19: 교과서 | B19: 지엔피에듀 | C19: 무용의 이해 | G19: 9800 | H19: 43 | I19: -12 | J19: 0 | K19: 3 | L19: 28 | M19: 274400
C20: 2학년 계 | H20: 2606 | I20: -3 | J20: 63 | K20: 19 | L20: 2521 | M20: 19606230
A21: 교과서 | B21: 비상교육 | C21: 화법과 작문(15개정) | G21: 7360 | H21: 308 | I21: 0 | J21: 0 | K21: 3 | L21: 305 | M21: 2244800
A22: 교과서 | B22: 창비 | C22: 언어와 매체 | G22: 7530 | H22: 308 | I22: 0 | J22: 0 | K22: 3 | L22: 305 | M22: 2296650
A23: 교과서 | B23: 엔이능률 | C23: 영어Ⅱ(15개정) | G23: 5610 | H23: 305 | I23: 0 | J23: 0 | K23: 0 | L23: 305 | M23: 1711050
A24: 교과서 | B24: 천재교과 | C24: 생활과 윤리(15개정) | G24: 7520 | H24: 306 | I24: 0 | J24: 0 | K24: 1 | L24: 305 | M24: 2293600
A25: 교과서 | B25: (주)체육과건강 | C25: 스포츠 생활 | G25: 8000 | H25: 308 | I25: 0 | J25: 0 | K25: 3 | L25: 305 | M25: 2440000
C26: 3학년 계 | H26: 1535 | I26: 0 | J26: 0 | K26: 10 | L26: 1525 | M26: 10986100
A27: 2,3학년 교과서합계 | H27: 5971 | I27: 31 | J27: 81 | K27: 39 | L27: =L26+L20 -> 4046 | M27: =M26+M20 -> 30592330
B30: 상기 정산금액을 아래구좌로 입금하여 주시기 바랍니다.
A32: 학교CMS코드 | C32: 30804018 | E32: 가상계좌
A33: 거 래 은 행 | C33: 농협 | E33: 농협 | H33: 우리 | J33: 하나
A34: 예 금 주 | C34: (사)한국검인정교과서 | E34: 안양예술고 | H34: 안양예술고 | J34: 안양예술고
A35: 계 좌 번 호 | C35: 025-01-201021 | E35: 79012982654323 | H35: 27299745718166 | J35: 23993222750837
